[Event "Titled Tuesday Blitz December 06 Late 2022"]
[White "Zhu, Jiner"]
[Black "Slovineanu"]
[WhiteFideId "8608059"]
[WhiteElo "2384"]
[BlackElo "2273"]
[Result "0-1"]
[Round "02"]
[TimeControl "180+1"]
[Date "2022.12.07"]
[WhiteClock "0:00:34"]
[BlackClock "0:00:56"]

1. d4 {[%clk 0:03:00]}  Nf6 {[%clk 0:02:55]} 2. c4 {[%clk 0:03:00]}  e6 {[%clk 0:02:51]} 3. Nf3 {[%clk 0:02:59]}  d5 {[%clk 0:02:49]} 4. Nc3 {[%clk 0:02:59]}  c5 {[%clk 0:02:49]} 5. cxd5 {[%clk 0:02:58]}  cxd4 {[%clk 0:02:49]} 6. Qxd4 {[%clk 0:02:44]}  exd5 {[%clk 0:02:48]} 7. e3 {[%clk 0:02:43]}  g6 {[%clk 0:02:33]} 8. Nxd5 {[%clk 0:02:15]}  Qxd5 {[%clk 0:02:15]} 9. Qxf6 {[%clk 0:02:14]}  Bb4+ {[%clk 0:02:16]} 10. Bd2 {[%clk 0:02:12]}  Bxd2+ {[%clk 0:02:15]} 11. Nxd2 {[%clk 0:02:13]}  O-O {[%clk 0:02:16]} 12. Bc4 {[%clk 0:01:44]}  Qa5 {[%clk 0:02:10]} 13. O-O-O {[%clk 0:01:37]}  Nd7 {[%clk 0:02:04]} 14. Qc3 {[%clk 0:01:34]}  Qxc3+ {[%clk 0:02:02]} 15. bxc3 {[%clk 0:01:35]}  Ne5 {[%clk 0:02:02]} 16. Bb3 {[%clk 0:01:30]}  Nd3+ {[%clk 0:02:01]} 17. Kc2 {[%clk 0:01:27]}  Nxf2 {[%clk 0:02:01]} 18. Rhf1 {[%clk 0:01:27]}  Nxd1 {[%clk 0:02:01]} 19. Rxd1 {[%clk 0:01:28]}  Be6 {[%clk 0:01:57]} 20. Nf3 {[%clk 0:01:25]}  Rfd8 {[%clk 0:01:53]} 21. Nd4 {[%clk 0:01:25]}  Bd5 {[%clk 0:01:48]} 22. g3 {[%clk 0:01:21]}  a6 {[%clk 0:01:45]} 23. Rf1 {[%clk 0:01:19]}  Rac8 {[%clk 0:01:41]} 24. Rf6 {[%clk 0:01:17]}  b5 {[%clk 0:01:24]} 25. Rxa6 {[%clk 0:01:11]}  b4 {[%clk 0:01:23]} 26. Nb5 {[%clk 0:00:35]}  bxc3 {[%clk 0:01:16]} 27. Nxc3 {[%clk 0:00:35]}  Be4+ {[%clk 0:01:02]} 28. Kb2 {[%clk 0:00:34]}  Rd2+ {[%clk 0:01:02]} 29. Kc1 {[%clk 0:00:34]}  Rd3 {[%clk 0:00:56]} 0-1


[Site "https://www.chess.com"]

[Event "Titled Tuesday Blitz December 06 Late 2022"]
[White "Zierk, Steven"]
[Black "Mendez Fortes, Eduardo Jesus"]
[WhiteFideId "2034255"]
[BlackFideId "3502376"]
[WhiteElo "2494"]
[BlackElo "2307"]
[Result "1-0"]
[Round "02"]
[TimeControl "180+1"]
[Date "2022.12.06"]
[WhiteClock "0:00:10"]
[BlackClock "0:00:15"]

1. e4 {[%clk 0:03:00]}  e5 {[%clk 0:02:59]} 2. Nf3 {[%clk 0:03:01]}  Nc6 {[%clk 0:02:59]} 3. Bb5 {[%clk 0:03:00]}  Nf6 {[%clk 0:02:59]} 4. d3 {[%clk 0:02:56]}  Bc5 {[%clk 0:02:59]} 5. O-O {[%clk 0:02:55]}  d6 {[%clk 0:02:59]} 6. c3 {[%clk 0:02:53]}  O-O {[%clk 0:02:59]} 7. h3 {[%clk 0:02:48]}  Bb6 {[%clk 0:02:57]} 8. Re1 {[%clk 0:02:44]}  Ne7 {[%clk 0:02:53]} 9. Nbd2 {[%clk 0:02:31]}  Ng6 {[%clk 0:02:53]} 10. a4 {[%clk 0:02:24]}  c6 {[%clk 0:02:52]} 11. Bc4 {[%clk 0:02:23]}  d5 {[%clk 0:02:51]} 12. Bb3 {[%clk 0:02:21]}  Bc7 {[%clk 0:02:51]} 13. Qc2 {[%clk 0:02:15]}  Kh8 {[%clk 0:02:32]} 14. Nf1 {[%clk 0:02:13]}  h6 {[%clk 0:02:29]} 15. Ng3 {[%clk 0:02:04]}  Be6 {[%clk 0:02:28]} 16. Be3 {[%clk 0:01:44]}  Bd6 {[%clk 0:02:18]} 17. Rad1 {[%clk 0:01:35]}  c5 {[%clk 0:02:04]} 18. exd5 {[%clk 0:01:22]}  Nxd5 {[%clk 0:02:00]} 19. Ne4 {[%clk 0:01:21]}  Rc8 {[%clk 0:01:46]} 20. Bc1 {[%clk 0:01:04]}  Bb8 {[%clk 0:01:26]} 21. Bc4 {[%clk 0:00:58]}  f5 {[%clk 0:01:18]} 22. Ng3 {[%clk 0:00:58]}  Qf6 {[%clk 0:01:15]} 23. Qb3 {[%clk 0:00:55]}  Ndf4 {[%clk 0:00:54]} 24. Bxe6 {[%clk 0:00:49]}  Nxe6 {[%clk 0:00:52]} 25. Qxb7 {[%clk 0:00:48]}  Nef4 {[%clk 0:00:30]} 26. Qb5 {[%clk 0:00:33]}  a6 {[%clk 0:00:20]} 27. Qc4 {[%clk 0:00:33]}  Kh7 {[%clk 0:00:18]} 28. a5 {[%clk 0:00:20]}  Rce8 {[%clk 0:00:19]} 29. Qxc5 {[%clk 0:00:19]}  Nh4 {[%clk 0:00:19]} 30. Nxh4 {[%clk 0:00:18]}  Qxh4 {[%clk 0:00:20]} 31. Qc6 {[%clk 0:00:15]}  e4 {[%clk 0:00:19]} 32. dxe4 {[%clk 0:00:13]}  Nxh3+ {[%clk 0:00:20]} 33. gxh3 {[%clk 0:00:13]}  Bxg3 {[%clk 0:00:20]} 34. Re2 {[%clk 0:00:07]}  Bb8 {[%clk 0:00:20]} 35. e5 {[%clk 0:00:04]}  Qxh3 {[%clk 0:00:20]} 36. Qg2 {[%clk 0:00:04]}  Qh5 {[%clk 0:00:19]} 37. Rde1 {[%clk 0:00:03]}  f4 {[%clk 0:00:19]} 38. Qe4+ {[%clk 0:00:03]}  Kh8 {[%clk 0:00:19]} 39. Bxf4 {[%clk 0:00:03]}  Re6 {[%clk 0:00:17]} 40. Bg3 {[%clk 0:00:03]}  Rg6 {[%clk 0:00:17]} 41. Re3 {[%clk 0:00:03]}  Re8 {[%clk 0:00:16]} 42. Qf3 {[%clk 0:00:03]}  Qh3 {[%clk 0:00:08]} 43. e6 {[%clk 0:00:03]}  Bxg3 {[%clk 0:00:07]} 44. fxg3 {[%clk 0:00:03]}  Rf6 {[%clk 0:00:06]} 45. Qg2 {[%clk 0:00:03]}  Qg4 {[%clk 0:00:07]} 46. e7 {[%clk 0:00:04]}  Rf7 {[%clk 0:00:07]} 47. Qc6 {[%clk 0:00:03]}  Rexe7 {[%clk 0:00:06]} 48. Rxe7 {[%clk 0:00:03]}  Qxg3+ {[%clk 0:00:07]} 49. Qg2 {[%clk 0:00:04]}  Qf4 {[%clk 0:00:05]} 50. Rxf7 {[%clk 0:00:04]}  Qxf7 {[%clk 0:00:06]} 51. Qa8+ {[%clk 0:00:04]}  Kh7 {[%clk 0:00:06]} 52. Qe4+ {[%clk 0:00:05]}  g6 {[%clk 0:00:07]} 53. Qe7 {[%clk 0:00:05]}  Kg8 {[%clk 0:00:07]} 54. Qxf7+ {[%clk 0:00:06]}  Kxf7 {[%clk 0:00:08]} 55. Rd1 {[%clk 0:00:06]}  Ke7 {[%clk 0:00:08]} 56. Rd4 {[%clk 0:00:07]}  g5 {[%clk 0:00:09]} 57. Rb4 {[%clk 0:00:08]}  Kd6 {[%clk 0:00:10]} 58. Rb6+ {[%clk 0:00:09]}  Ke5 {[%clk 0:00:11]} 59. Rxa6 {[%clk 0:00:10]}  Kf4 {[%clk 0:00:11]} 60. Rb6 {[%clk 0:00:10]}  h5 {[%clk 0:00:12]} 61. a6 {[%clk 0:00:11]}  Kg3 {[%clk 0:00:13]} 62. a7 {[%clk 0:00:12]}  h4 {[%clk 0:00:14]} 63. a8=Q {[%clk 0:00:12]}  h3 {[%clk 0:00:15]} 64. Qb8+ {[%clk 0:00:10]} 1-0


[Site "https://www.chess.com"]

[Event "Titled Tuesday Blitz December 06 Late 2022"]
[White "Alexikov, Alexander"]
[Black "Aghasiyev, Kamal"]
[WhiteFideId "14103958"]
[BlackFideId "13402854"]
[WhiteElo "2222"]
[BlackElo "2341"]
[Result "0-1"]
[Round "03"]
[TimeControl "180+1"]
[Date "2022.12.07"]
[WhiteClock "0:00:05"]
[BlackClock "0:00:02"]

1. e4 {[%clk 0:03:00]}  e5 {[%clk 0:02:59]} 2. Nf3 {[%clk 0:03:00]}  Nc6 {[%clk 0:02:59]} 3. c3 {[%clk 0:03:00]}  d5 {[%clk 0:02:53]} 4. Qa4 {[%clk 0:02:58]}  dxe4 {[%clk 0:02:44]} 5. Nxe5 {[%clk 0:02:56]}  Qd5 {[%clk 0:02:27]} 6. Nxc6 {[%clk 0:02:56]}  bxc6 {[%clk 0:02:26]} 7. Bc4 {[%clk 0:02:55]}  Qd6 {[%clk 0:02:22]} 8. O-O {[%clk 0:02:43]}  Nf6 {[%clk 0:02:21]} 9. d3 {[%clk 0:02:43]}  exd3 {[%clk 0:02:05]} 10. Bf4 {[%clk 0:02:39]}  Qc5 {[%clk 0:01:59]} 11. Nd2 {[%clk 0:02:29]}  Bd6 {[%clk 0:01:38]} 12. Rfe1+ {[%clk 0:02:14]}  Kf8 {[%clk 0:01:38]} 13. Nb3 {[%clk 0:01:49]}  Qb6 {[%clk 0:01:25]} 14. Be3 {[%clk 0:01:47]}  c5 {[%clk 0:01:20]} 15. Rad1 {[%clk 0:01:31]}  Bd7 {[%clk 0:01:09]} 16. Qa3 {[%clk 0:01:29]}  h5 {[%clk 0:00:28]} 17. Bxc5 {[%clk 0:01:18]}  Bxc5 {[%clk 0:00:26]} 18. Qxc5+ {[%clk 0:01:17]}  Qxc5 {[%clk 0:00:25]} 19. Nxc5 {[%clk 0:01:16]}  Bc6 {[%clk 0:00:23]} 20. Rxd3 {[%clk 0:01:12]}  Rh6 {[%clk 0:00:21]} 21. f3 {[%clk 0:01:10]}  h4 {[%clk 0:00:21]} 22. Kf2 {[%clk 0:01:09]}  a5 {[%clk 0:00:19]} 23. a4 {[%clk 0:01:07]}  Rb8 {[%clk 0:00:18]} 24. b3 {[%clk 0:01:06]}  Rh5 {[%clk 0:00:18]} 25. Na6 {[%clk 0:00:51]}  Rc8 {[%clk 0:00:18]} 26. Red1 {[%clk 0:00:51]}  g6 {[%clk 0:00:17]} 27. Rd8+ {[%clk 0:00:48]}  Rxd8 {[%clk 0:00:17]} 28. Rxd8+ {[%clk 0:00:47]}  Kg7 {[%clk 0:00:18]} 29. Nxc7 {[%clk 0:00:46]}  Rc5 {[%clk 0:00:15]} 30. Nb5 {[%clk 0:00:43]}  Bd5 {[%clk 0:00:13]} 31. Bxd5 {[%clk 0:00:39]}  Nxd5 {[%clk 0:00:13]} 32. c4 {[%clk 0:00:37]}  Nf4 {[%clk 0:00:13]} 33. g3 {[%clk 0:00:34]}  hxg3+ {[%clk 0:00:12]} 34. hxg3 {[%clk 0:00:33]}  Ne6 {[%clk 0:00:13]} 35. Rd7 {[%clk 0:00:31]}  Rh5 {[%clk 0:00:12]} 36. Kg2 {[%clk 0:00:30]}  Re5 {[%clk 0:00:12]} 37. Kf2 {[%clk 0:00:24]}  Rh5 {[%clk 0:00:12]} 38. Ke3 {[%clk 0:00:24]}  Rh2 {[%clk 0:00:10]} 39. Nd6 {[%clk 0:00:22]}  Rb2 {[%clk 0:00:10]} 40. Rxf7+ {[%clk 0:00:21]}  Kg8 {[%clk 0:00:09]} 41. Rb7 {[%clk 0:00:20]}  Nc5 {[%clk 0:00:09]} 42. Rb5 {[%clk 0:00:20]}  Nxb3 {[%clk 0:00:08]} 43. Ne4 {[%clk 0:00:18]}  Rb1 {[%clk 0:00:06]} 44. Nc3 {[%clk 0:00:16]}  Re1+ {[%clk 0:00:06]} 45. Kf4 {[%clk 0:00:16]}  Nd2 {[%clk 0:00:05]} 46. Rxa5 {[%clk 0:00:15]}  Nxc4 {[%clk 0:00:05]} 47. Rc5 {[%clk 0:00:15]}  Nd6 {[%clk 0:00:05]} 48. Ne4 {[%clk 0:00:14]}  Nf7 {[%clk 0:00:04]} 49. a5 {[%clk 0:00:13]}  Ra1 {[%clk 0:00:04]} 50. Rb5 {[%clk 0:00:12]}  Kg7 {[%clk 0:00:05]} 51. g4 {[%clk 0:00:11]}  Kf8 {[%clk 0:00:04]} 52. g5 {[%clk 0:00:11]}  Ra4 {[%clk 0:00:03]} 53. Rc5 {[%clk 0:00:11]}  Ke7 {[%clk 0:00:03]} 54. Rd5 {[%clk 0:00:11]}  Ke6 {[%clk 0:00:03]} 55. Rb5 {[%clk 0:00:09]}  Ke7 {[%clk 0:00:02]} 56. Rb7+ {[%clk 0:00:09]}  Kf8 {[%clk 0:00:02]} 57. Ra7 {[%clk 0:00:06]}  Nd6 {[%clk 0:00:02]} 58. Ke5 {[%clk 0:00:06]}  Nc4+ {[%clk 0:00:02]} 59. Kf6 {[%clk 0:00:05]}  Rxa5 {[%clk 0:00:02]} 60. Rc7 {[%clk 0:00:05]}  Ra6+ {[%clk 0:00:02]} 0-1


[Site "https://www.chess.com"]

[Event "Titled Tuesday Blitz December 06 Late 2022"]
[White "Ankerst, Mihael"]
[Black "Potapova, Margarita"]
[WhiteFideId "14602369"]
[BlackFideId "14126869"]
[WhiteElo "2366"]
[BlackElo "2273"]
[Result "1/2-1/2"]
[Round "03"]
[TimeControl "180+1"]
[Date "2022.12.07"]
[WhiteClock "0:00:11"]
[BlackClock "0:00:18"]

1. e4 {[%clk 0:01:57]}  e5 {[%clk 0:02:59]} 2. Nf3 {[%clk 0:01:56]}  Nc6 {[%clk 0:02:59]} 3. Nc3 {[%clk 0:01:56]}  Nf6 {[%clk 0:02:59]} 4. d4 {[%clk 0:01:57]}  exd4 {[%clk 0:03:00]} 5. Nxd4 {[%clk 0:01:58]}  Bb4 {[%clk 0:03:00]} 6. Nxc6 {[%clk 0:01:58]}  bxc6 {[%clk 0:03:00]} 7. Bd3 {[%clk 0:01:59]}  d5 {[%clk 0:03:01]} 8. exd5 {[%clk 0:02:00]}  O-O {[%clk 0:03:01]} 9. O-O {[%clk 0:02:01]}  Bg4 {[%clk 0:03:01]} 10. f3 {[%clk 0:02:00]}  Bh5 {[%clk 0:03:02]} 11. Bg5 {[%clk 0:02:01]}  Qd6 {[%clk 0:03:01]} 12. Kh1 {[%clk 0:02:00]}  Bxc3 {[%clk 0:02:46]} 13. bxc3 {[%clk 0:01:59]}  Nxd5 {[%clk 0:02:46]} 14. Qd2 {[%clk 0:01:43]}  Bg6 {[%clk 0:02:40]} 15. Rab1 {[%clk 0:01:39]}  Qa3 {[%clk 0:02:37]} 16. c4 {[%clk 0:01:32]}  Nb6 {[%clk 0:02:29]} 17. Rfe1 {[%clk 0:01:23]}  Qxa2 {[%clk 0:02:05]} 18. Qc3 {[%clk 0:01:09]}  Bxd3 {[%clk 0:01:32]} 19. cxd3 {[%clk 0:01:10]}  Qa6 {[%clk 0:01:31]} 20. Re7 {[%clk 0:00:59]}  Qb7 {[%clk 0:01:18]} 21. Bf4 {[%clk 0:00:49]}  Rac8 {[%clk 0:00:46]} 22. Rbe1 {[%clk 0:00:45]}  c5 {[%clk 0:00:38]} 23. Qe5 {[%clk 0:00:41]}  Qc6 {[%clk 0:00:36]} 24. Rxc7 {[%clk 0:00:41]}  Rxc7 {[%clk 0:00:36]} 25. Qxc7 {[%clk 0:00:41]}  Qxc7 {[%clk 0:00:37]} 26. Bxc7 {[%clk 0:00:41]}  Rc8 {[%clk 0:00:36]} 27. Bd6 {[%clk 0:00:37]}  f6 {[%clk 0:00:33]} 28. h4 {[%clk 0:00:33]}  Rd8 {[%clk 0:00:34]} 29. Bxc5 {[%clk 0:00:32]}  Rxd3 {[%clk 0:00:33]} 30. Re8+ {[%clk 0:00:24]}  Kf7 {[%clk 0:00:33]} 31. Re7+ {[%clk 0:00:24]}  Kg6 {[%clk 0:00:33]} 32. Rxa7 {[%clk 0:00:25]}  Nxc4 {[%clk 0:00:34]} 33. Bf8 {[%clk 0:00:24]}  Kf5 {[%clk 0:00:30]} 34. Rxg7 {[%clk 0:00:23]}  h5 {[%clk 0:00:31]} 35. Rh7 {[%clk 0:00:19]}  Kg6 {[%clk 0:00:31]} 36. Rh6+ {[%clk 0:00:18]}  Kf7 {[%clk 0:00:32]} 37. Bb4 {[%clk 0:00:15]}  Rd5 {[%clk 0:00:32]} 38. Kh2 {[%clk 0:00:12]}  Ne3 {[%clk 0:00:31]} 39. Rh7+ {[%clk 0:00:12]}  Kg6 {[%clk 0:00:31]} 40. Re7 {[%clk 0:00:11]}  Nf5 {[%clk 0:00:30]} 41. Re4 {[%clk 0:00:10]}  Rd4 {[%clk 0:00:22]} 42. Rxd4 {[%clk 0:00:05]}  Nxd4 {[%clk 0:00:23]} 43. Be1 {[%clk 0:00:05]}  Kf5 {[%clk 0:00:23]} 44. Kg3 {[%clk 0:00:04]}  Ne2+ {[%clk 0:00:23]} 45. Kf2 {[%clk 0:00:05]}  Nf4 {[%clk 0:00:24]} 46. g3 {[%clk 0:00:05]}  Nd3+ {[%clk 0:00:23]} 47. Ke2 {[%clk 0:00:05]}  Ne5 {[%clk 0:00:24]} 48. Ke3 {[%clk 0:00:04]}  Nc4+ {[%clk 0:00:24]} 49. Kf2 {[%clk 0:00:05]}  Ne5 {[%clk 0:00:24]} 50. Bc3 {[%clk 0:00:05]}  Nd3+ {[%clk 0:00:24]} 51. Ke3 {[%clk 0:00:06]}  Nc5 {[%clk 0:00:25]} 52. Bd4 {[%clk 0:00:06]}  Ne6 {[%clk 0:00:25]} 53. Bc3 {[%clk 0:00:07]}  Nc7 {[%clk 0:00:24]} 54. Bd2 {[%clk 0:00:08]}  Nd5+ {[%clk 0:00:24]} 55. Kd4 {[%clk 0:00:08]}  Ne7 {[%clk 0:00:24]} 56. Bc3 {[%clk 0:00:09]}  Nc6+ {[%clk 0:00:23]} 57. Ke3 {[%clk 0:00:10]}  Ne7 {[%clk 0:00:23]} 58. Bb2 {[%clk 0:00:11]}  Nd5+ {[%clk 0:00:23]} 59. Kd4 {[%clk 0:00:11]}  Nb4 {[%clk 0:00:22]} 60. Bc3 {[%clk 0:00:11]}  Nc6+ {[%clk 0:00:23]} 61. Kd3 {[%clk 0:00:12]}  Ne7 {[%clk 0:00:23]} 62. Ke2 {[%clk 0:00:13]}  Nd5 {[%clk 0:00:23]} 63. Bd2 {[%clk 0:00:14]}  Ne7 {[%clk 0:00:22]} 64. Be3 {[%clk 0:00:14]}  Ng6 {[%clk 0:00:22]} 65. Kf2 {[%clk 0:00:13]}  Ne5 {[%clk 0:00:19]} 66. Bd4 {[%clk 0:00:12]}  Nc4 {[%clk 0:00:19]} 67. Kg2 {[%clk 0:00:12]}  Nd6 {[%clk 0:00:19]} 68. Kh3 {[%clk 0:00:12]}  Nf7 {[%clk 0:00:20]} 69. Bc3 {[%clk 0:00:12]}  Nd6 {[%clk 0:00:19]} 70. Bb2 {[%clk 0:00:12]}  Nf7 {[%clk 0:00:19]} 71. Ba3 {[%clk 0:00:13]}  Ne5 {[%clk 0:00:19]} 72. Kg2 {[%clk 0:00:12]}  Nc4 {[%clk 0:00:20]} 73. Bc5 {[%clk 0:00:12]}  Na5 {[%clk 0:00:18]} 74. Bd6 {[%clk 0:00:12]}  Nc4 {[%clk 0:00:18]} 75. Bc7 {[%clk 0:00:12]}  Ne3+ {[%clk 0:00:18]} 76. Kh3 {[%clk 0:00:12]}  Nd5 {[%clk 0:00:19]} 77. g4+ {[%clk 0:00:12]}  hxg4+ {[%clk 0:00:19]} 78. fxg4+ {[%clk 0:00:13]}  Kg6 {[%clk 0:00:20]} 79. Bd6 {[%clk 0:00:14]}  f5 {[%clk 0:00:19]} 80. h5+ {[%clk 0:00:13]}  Kh6 {[%clk 0:00:18]} 81. Bf8+ {[%clk 0:00:12]}  Kg5 {[%clk 0:00:18]} 82. h6 {[%clk 0:00:12]}  fxg4+ {[%clk 0:00:18]} 83. Kg3 {[%clk 0:00:12]}  Kg6 {[%clk 0:00:17]} 84. Kxg4 {[%clk 0:00:12]}  Nf6+ {[%clk 0:00:18]} 85. Kf4 {[%clk 0:00:12]}  Ng8 {[%clk 0:00:18]} 86. Kg3 {[%clk 0:00:11]}  Nxh6 {[%clk 0:00:18]} 1/2-1/2


[Site "https://www.chess.com"]

[Event "Titled Tuesday Blitz December 06 Late 2022"]
[White "Arbunic Castro, Giovanna"]
[Black "Sanchez, Robert"]
[WhiteFideId "3400549"]
[BlackFideId "2034360"]
[WhiteElo "1920"]
[BlackElo "2354"]
[Result "1-0"]
[Round "03"]
[TimeControl "180+1"]
[Date "2022.12.07"]
[WhiteClock "0:00:15"]
[BlackClock "0:00:14"]

1. e4 {[%clk 0:02:57]}  e6 {[%clk 0:03:00]} 2. d4 {[%clk 0:02:55]}  d5 {[%clk 0:03:00]} 3. exd5 {[%clk 0:02:55]}  exd5 {[%clk 0:03:00]} 4. Nf3 {[%clk 0:02:54]}  Nf6 {[%clk 0:03:01]} 5. c4 {[%clk 0:02:52]}  Bb4+ {[%clk 0:02:59]} 6. Nc3 {[%clk 0:02:50]}  O-O {[%clk 0:02:59]} 7. Be2 {[%clk 0:02:48]}  dxc4 {[%clk 0:02:59]} 8. O-O {[%clk 0:02:46]}  Bg4 {[%clk 0:02:50]} 9. h3 {[%clk 0:02:44]}  Bh5 {[%clk 0:02:48]} 10. g4 {[%clk 0:02:38]}  Bg6 {[%clk 0:02:48]} 11. Bxc4 {[%clk 0:02:38]}  Nc6 {[%clk 0:02:49]} 12. Re1 {[%clk 0:02:31]}  Re8 {[%clk 0:02:35]} 13. Rxe8+ {[%clk 0:02:18]}  Nxe8 {[%clk 0:02:21]} 14. Bg5 {[%clk 0:02:14]}  Qd7 {[%clk 0:01:59]} 15. Nd5 {[%clk 0:02:05]}  Bd6 {[%clk 0:01:56]} 16. Qe2 {[%clk 0:01:51]}  h6 {[%clk 0:01:37]} 17. Bh4 {[%clk 0:01:42]}  a6 {[%clk 0:01:32]} 18. Rd1 {[%clk 0:01:28]}  b5 {[%clk 0:01:13]} 19. Bb3 {[%clk 0:01:20]}  Na5 {[%clk 0:01:11]} 20. Ne5 {[%clk 0:01:18]}  Bxe5 {[%clk 0:00:55]} 21. dxe5 {[%clk 0:01:16]}  Kh8 {[%clk 0:00:37]} 22. Nb6 {[%clk 0:01:01]}  Qc6 {[%clk 0:00:36]} 23. Nxa8 {[%clk 0:00:59]}  Qxa8 {[%clk 0:00:36]} 24. Qd2 {[%clk 0:00:51]}  Nxb3 {[%clk 0:00:34]} 25. axb3 {[%clk 0:00:49]}  Kh7 {[%clk 0:00:33]} 26. Qd5 {[%clk 0:00:41]}  Qa7 {[%clk 0:00:23]} 27. Qd8 {[%clk 0:00:37]}  f6 {[%clk 0:00:20]} 28. exf6 {[%clk 0:00:31]}  gxf6 {[%clk 0:00:18]} 29. Rd7+ {[%clk 0:00:20]}  Kg8 {[%clk 0:00:16]} 30. Bxf6 {[%clk 0:00:18]}  Bf7 {[%clk 0:00:14]} 31. Qe7 {[%clk 0:00:15]} 1-0


[Site "https://www.chess.com"]

[Event "Titled Tuesday Blitz December 06 Late 2022"]
[White "Bas Mas, Jose Joaquin"]
[Black "Fernandez De La Vara, Arnaldo"]
[WhiteFideId "22219064"]
[BlackFideId "3518388"]
[WhiteElo "2233"]
[BlackElo "2387"]
[Result "1-0"]
[Round "03"]
[TimeControl "180+1"]
[Date "2022.12.07"]
[WhiteClock "0:01:00"]
[BlackClock "0:00:11"]

1. e4 {[%clk 0:03:00]}  c5 {[%clk 0:03:00]} 2. Nc3 {[%clk 0:03:00]}  Nc6 {[%clk 0:02:58]} 3. Bb5 {[%clk 0:02:59]}  Nd4 {[%clk 0:02:57]} 4. Nf3 {[%clk 0:02:59]}  g6 {[%clk 0:02:56]} 5. Nxd4 {[%clk 0:02:58]}  cxd4 {[%clk 0:02:57]} 6. Ne2 {[%clk 0:02:58]}  Bg7 {[%clk 0:02:58]} 7. d3 {[%clk 0:02:56]}  Nf6 {[%clk 0:02:53]} 8. O-O {[%clk 0:02:56]}  O-O {[%clk 0:02:47]} 9. f3 {[%clk 0:02:55]}  d6 {[%clk 0:02:36]} 10. Bc4 {[%clk 0:02:53]}  Nd7 {[%clk 0:02:36]} 11. Qe1 {[%clk 0:02:49]}  Qc7 {[%clk 0:02:15]} 12. Bg5 {[%clk 0:02:40]}  Nc5 {[%clk 0:01:57]} 13. Qh4 {[%clk 0:02:37]}  Re8 {[%clk 0:01:50]} 14. Nf4 {[%clk 0:02:14]}  Be6 {[%clk 0:01:37]} 15. Nxe6 {[%clk 0:02:10]}  Nxe6 {[%clk 0:01:38]} 16. Bxe6 {[%clk 0:02:05]}  fxe6 {[%clk 0:01:38]} 17. Rf2 {[%clk 0:02:02]}  a5 {[%clk 0:01:36]} 18. Qh3 {[%clk 0:02:01]}  Qd7 {[%clk 0:01:34]} 19. Raf1 {[%clk 0:01:53]}  a4 {[%clk 0:01:22]} 20. f4 {[%clk 0:01:53]}  Ra5 {[%clk 0:01:13]} 21. b4 {[%clk 0:01:46]}  Rb5 {[%clk 0:01:09]} 22. a3 {[%clk 0:01:43]}  Rc8 {[%clk 0:01:09]} 23. Qh4 {[%clk 0:01:40]}  Rc7 {[%clk 0:01:03]} 24. g4 {[%clk 0:01:37]}  Rc3 {[%clk 0:00:51]} 25. Bh6 {[%clk 0:01:36]}  Bf6 {[%clk 0:00:50]} 26. Bg5 {[%clk 0:01:33]}  Kg7 {[%clk 0:00:33]} 27. Rf3 {[%clk 0:01:27]}  Rc8 {[%clk 0:00:30]} 28. Qh6+ {[%clk 0:01:22]}  Kf7 {[%clk 0:00:29]} 29. Qxh7+ {[%clk 0:01:22]}  Bg7 {[%clk 0:00:29]} 30. f5 {[%clk 0:01:16]}  gxf5 {[%clk 0:00:19]} 31. gxf5 {[%clk 0:01:16]}  e5 {[%clk 0:00:13]} 32. Bh6 {[%clk 0:01:00]}  Rg8 {[%clk 0:00:11]} 33. Rg3 {[%clk 0:01:00]} 1-0


[Site "https://www.chess.com"]

[Event "Titled Tuesday Blitz December 06 Late 2022"]
[White "Bazzano, Sebastian"]
[Black "Girsh, Daniel"]
[WhiteFideId "104566"]
[BlackFideId "30949190"]
[WhiteElo "2193"]
[BlackElo "2075"]
[Result "0-1"]
[Round "03"]
[TimeControl "180+1"]
[Date "2022.12.07"]
[WhiteClock "0:00:03"]
[BlackClock "0:00:49"]

1. d4 {[%clk 0:02:59]}  Nf6 {[%clk 0:02:58]} 2. Bf4 {[%clk 0:02:57]}  d5 {[%clk 0:02:57]} 3. e3 {[%clk 0:02:57]}  c5 {[%clk 0:02:57]} 4. c3 {[%clk 0:02:57]}  Nc6 {[%clk 0:02:57]} 5. Nd2 {[%clk 0:02:57]}  Bf5 {[%clk 0:02:56]} 6. Qb3 {[%clk 0:02:56]}  Qc8 {[%clk 0:02:57]} 7. Ngf3 {[%clk 0:02:55]}  c4 {[%clk 0:02:57]} 8. Qd1 {[%clk 0:02:55]}  e6 {[%clk 0:02:58]} 9. h3 {[%clk 0:02:54]}  h6 {[%clk 0:02:58]} 10. Be2 {[%clk 0:02:54]}  Be7 {[%clk 0:02:59]} 11. O-O {[%clk 0:02:53]}  O-O {[%clk 0:02:59]} 12. Ne5 {[%clk 0:02:53]}  b5 {[%clk 0:02:58]} 13. Re1 {[%clk 0:02:52]}  a5 {[%clk 0:02:55]} 14. Bf3 {[%clk 0:02:43]}  Ne4 {[%clk 0:02:48]} 15. Nxe4 {[%clk 0:02:14]}  dxe4 {[%clk 0:02:43]} 16. Bg4 {[%clk 0:02:14]}  Nxe5 {[%clk 0:02:41]} 17. Bxe5 {[%clk 0:02:09]}  Rd8 {[%clk 0:02:22]} 18. Bxf5 {[%clk 0:01:34]}  exf5 {[%clk 0:02:23]} 19. f3 {[%clk 0:01:35]}  Qc6 {[%clk 0:02:21]} 20. fxe4 {[%clk 0:01:26]}  Qxe4 {[%clk 0:02:20]} 21. Qf3 {[%clk 0:01:23]}  f6 {[%clk 0:02:16]} 22. Bh2 {[%clk 0:01:00]}  b4 {[%clk 0:02:09]} 23. Rf1 {[%clk 0:00:50]}  g6 {[%clk 0:02:09]} 24. Qxe4 {[%clk 0:00:22]}  fxe4 {[%clk 0:02:09]} 25. g4 {[%clk 0:00:21]}  Ra6 {[%clk 0:01:56]} 26. Rf4 {[%clk 0:00:19]}  Re6 {[%clk 0:01:55]} 27. Rc1 {[%clk 0:00:16]}  Rc8 {[%clk 0:01:35]} 28. Rf2 {[%clk 0:00:16]}  bxc3 {[%clk 0:01:31]} 29. Rxc3 {[%clk 0:00:14]}  Bb4 {[%clk 0:01:30]} 30. Rc1 {[%clk 0:00:13]}  Kg7 {[%clk 0:01:16]} 31. Rfc2 {[%clk 0:00:13]}  c3 {[%clk 0:00:57]} 32. bxc3 {[%clk 0:00:13]}  Rec6 {[%clk 0:00:57]} 33. c4 {[%clk 0:00:08]}  Ba3 {[%clk 0:00:56]} 34. Rb1 {[%clk 0:00:08]}  Rxc4 {[%clk 0:00:56]} 35. Rb7+ {[%clk 0:00:08]}  Kg8 {[%clk 0:00:53]} 36. Rxc4 {[%clk 0:00:03]}  Rxc4 {[%clk 0:00:54]} 37. Ra7 {[%clk 0:00:03]}  Rc1+ {[%clk 0:00:51]} 38. Kg2 {[%clk 0:00:03]}  Rc2+ {[%clk 0:00:52]} 39. Kg1 {[%clk 0:00:03]}  Bc1 {[%clk 0:00:49]} 0-1


[Site "https://www.chess.com"]

[Event "Titled Tuesday Blitz December 06 Late 2022"]
[White "Bogaudinov, Rushan"]
[Black "Matinian, Nikita"]
[WhiteFideId "4129288"]
[BlackFideId "24129100"]
[WhiteElo "2028"]
[BlackElo "2422"]
[Result "0-1"]
[Round "03"]
[TimeControl "180+1"]
[Date "2022.12.07"]
[WhiteClock "0:01:27"]
[BlackClock "0:02:12"]

1. a3 {[%clk 0:02:59]}  e5 {[%clk 0:02:58]} 2. e3 {[%clk 0:02:59]}  Nc6 {[%clk 0:02:58]} 3. Bb5 {[%clk 0:02:59]}  a6 {[%clk 0:02:54]} 4. Bxc6 {[%clk 0:02:58]}  dxc6 {[%clk 0:02:55]} 5. d4 {[%clk 0:02:57]}  e4 {[%clk 0:02:54]} 6. c4 {[%clk 0:02:56]}  Qg5 {[%clk 0:02:53]} 7. Kf1 {[%clk 0:02:55]}  h5 {[%clk 0:02:51]} 8. Nc3 {[%clk 0:02:52]}  Nf6 {[%clk 0:02:50]} 9. b4 {[%clk 0:02:51]}  h4 {[%clk 0:02:50]} 10. h3 {[%clk 0:02:50]}  Rh6 {[%clk 0:02:50]} 11. Nge2 {[%clk 0:02:49]}  Bd6 {[%clk 0:02:49]} 12. c5 {[%clk 0:02:42]}  Rg6 {[%clk 0:02:48]} 13. Rg1 {[%clk 0:02:41]}  Bh2 {[%clk 0:02:47]} 14. Nf4 {[%clk 0:02:41]}  Bxg1 {[%clk 0:02:32]} 15. Nxg6 {[%clk 0:02:33]}  Qxg6 {[%clk 0:02:33]} 16. Kxg1 {[%clk 0:02:29]}  Bxh3 {[%clk 0:02:33]} 17. Qf1 {[%clk 0:02:26]}  Bg4 {[%clk 0:02:29]} 18. Kh2 {[%clk 0:02:18]}  O-O-O {[%clk 0:02:28]} 19. a4 {[%clk 0:02:15]}  h3 {[%clk 0:02:28]} 20. g3 {[%clk 0:02:11]}  Bf3 {[%clk 0:02:28]} 21. Qxh3+ {[%clk 0:02:06]}  Bg4 {[%clk 0:02:15]} 22. Qh4 {[%clk 0:02:00]}  Qf5 {[%clk 0:02:14]} 23. Ra2 {[%clk 0:01:57]}  g5 {[%clk 0:02:15]} 24. Qh6 {[%clk 0:01:51]}  Be2 {[%clk 0:02:15]} 25. Qh3 {[%clk 0:01:27]}  Ng4+ {[%clk 0:02:12]} 0-1


[Site "https://www.chess.com"]